bitfinex/quotes_BTCUSD_20250829
["timestamp","ask_amount","ask_price","bid_price","bid_amount"]
[1756458217036,1.19930051,109690.0,109680.0,0.09858512]
[1756458217246,1.19930051,109690.0,109680.0,0.10178512]
[1756458217458,1.01696849,109690.0,109680.0,0.28413377]
[1756458218290,0.18533202,109690.0,109680.0,0.10178512]
[1756458218525,1.20144051,109690.0,109680.0,0.09858512]
[1756458219168,1.20144051,109690.0,109680.0,0.28093377]
[1756458219436,1.19930051,109690.0,109680.0,0.10178512]
[1756458219644,1.23191565,109690.0,109680.0,0.09642512]
[1756458219887,1.23502565,109690.0,109680.0,0.0081288]
[1756458220090,1.74565647,109690.0,109680.0,0.0081288]
[1756458220576,1.76035511,109690.0,109680.0,0.0081288]
[1756458221231,1.84865143,109690.0,109680.0,0.0081288]
[1756458221435,1.93694775,109690.0,109680.0,0.0081288]
[1756458222086,1.93594775,109690.0,109680.0,0.0061288]
[1756458222523,1.93594775,109690.0,109680.0,0.0011288]
[1756458222524,1.93494775,109690.0,109680.0,0.0011288]
[1756458222731,1.95429675,109690.0,109680.0,1e-08]
[1756458222932,6.95529675,109690.0,109680.0,1e-08]
[1756458223134,5.94132826,109690.0,109680.0,1e-08]
[1756458223754,5.87069744,109690.0,109680.0,1e-08]
[1756458223962,5.94089744,109690.0,109680.0,1e-08]
[1756458224177,6.04089744,109690.0,109680.0,1e-08]
[1756458225589,6.05516984,109690.0,109680.0,1e-08]
[1756458226423,6.05488984,109690.0,109680.0,1e-08]
[1756458226994,6.05488984,109690.0,109680.0,4.001e-05]
[1756458227361,5.88496984,109690.0,109680.0,4.001e-05]
[1756458227558,6.05480984,109690.0,109680.0,4.001e-05]
[1756458227958,7.06877833,109690.0,109680.0,4.001e-05]
[1756458229743,6.89893833,109690.0,109680.0,4.001e-05]
[1756458230072,7.06849833,109690.0,109680.0,4.001e-05]
[1756458230494,7.06849544,109690.0,109680.0,4.001e-05]
[1756458230710,7.06849327,109690.0,109680.0,4.001e-05]
[1756458230922,6.62285455,109690.0,109680.0,0.00212001]
[1756458231121,6.62285455,109690.0,109680.0,4.001e-05]
[1756458231122,6.94350555,109690.0,109680.0,4.001e-05]
[1756458231460,1.94668555,109690.0,109680.0,4.001e-05]
[1756458232278,1.94350555,109690.0,109680.0,4.001e-05]
[1756458232821,1.94668555,109690.0,109680.0,4.001e-05]
[1756458234521,1.94350555,109690.0,109680.0,4.001e-05]
[1756458234962,1.94310555,109690.0,109680.0,4.001e-05]
[1756458235181,1.94310555,109690.0,109680.0,0.00212001]
[1756458235825,1.94310555,109690.0,109680.0,4.001e-05]
[1756458237145,1.94628555,109690.0,109680.0,4.001e-05]
[1756458238180,1.77390555,109690.0,109680.0,4.001e-05]
[1756458238390,1.94294555,109690.0,109680.0,4.001e-05]
[1756458239012,1.77390555,109690.0,109680.0,4.001e-05]
[1756458239170,1.94286555,109690.0,109680.0,4.001e-05]
[1756458240671,1.94604555,109690.0,109680.0,4.001e-05]
[1756458240933,1.94606167,109690.0,109680.0,4.001e-05]
[1756458241140,1.94288167,109690.0,109680.0,4.001e-05]
[1756458241349,1.68348535,109690.0,109680.0,0.00537001]
[1756458241693,0.56951686,109690.0,109680.0,0.00537001]
[1756458241955,1.34348535,109690.0,109680.0,0.00537001]
[1756458242156,1.48165021,109690.0,109680.0,0.00537001]
[1756458242370,1.32877565,109690.0,109680.0,0.09594568]
[1756458242586,1.32877565,109690.0,109680.0,0.09366633]
[1756458242814,1.32777565,109690.0,109680.0,0.09366633]
[1756458243005,0.31380716,109690.0,109680.0,0.09366633]
[1756458243223,1.32777565,109690.0,109680.0,0.09366633]
[1756458243437,1.19630051,109690.0,109680.0,0.27829432]
[1756458243648,0.001,109690.0,109680.0,0.28001497]
[1756458243784,1.01596849,109690.0,109680.0,0.28101497]
[1756458244400,0.002,109690.0,109680.0,0.28101497]
[1756458245494,0.001,109690.0,109680.0,0.27701497]
[1756458245700,1.29628436,109700.0,109690.0,0.18233202]
[1756458245926,1.29628436,109700.0,109690.0,0.27595834]
[1756458246131,0.03047514,109720.0,109710.0,0.18229878]
[1756458246329,0.03047514,109720.0,109710.0,0.2759251]
[1756458246330,1.204668,109720.0,109710.0,0.2759251]
[1756458246532,0.1,109720.0,109710.0,0.2759251]
[1756458246733,1.29625066,109720.0,109710.0,0.09362632]
[1756458246932,1.29625066,109720.0,109710.0,0.2739251]
[1756458247170,0.28228217,109720.0,109710.0,0.2739251]
[1756458247370,0.28228217,109720.0,109710.0,0.09162632]
[1756458247569,1.29625066,109720.0,109710.0,0.09162632]
[1756458247764,1.29625066,109720.0,109710.0,0.2739251]
[1756458248365,0.28228217,109720.0,109710.0,0.2739251]
[1756458248553,1.19625066,109720.0,109710.0,0.09162632]
[1756458248755,1.29625066,109720.0,109710.0,0.2739251]
[1756458249009,1.29725066,109720.0,109710.0,0.2739251]
[1756458249179,1.30225066,109720.0,109710.0,0.2749251]
[1756458249382,1.30225066,109720.0,109710.0,0.09262632]
[1756458249585,0.21275731,109720.0,109710.0,0.09162632]
[1756458249812,1.3287558,109720.0,109710.0,0.001]
[1756458250009,1.34234333,109720.0,109710.0,0.001]
[1756458250182,1.33916307,109720.0,109710.0,0.001]
[1756458250672,1.34234307,109720.0,109710.0,0.001]
[1756458250956,1.34234307,109720.0,109690.0,0.00325]
[1756458250957,0.28231367,109710.0,109690.0,0.29390891]
[1756458251170,0.13047514,109710.0,109700.0,0.27269172]
[1756458251380,1.32674241,109710.0,109700.0,0.27269172]
[1756458251587,1.32674241,109710.0,109700.0,0.27594172]
[1756458251808,1.22674241,109710.0,109700.0,0.09362632]
[1756458252014,1.32674241,109710.0,109700.0,0.09362632]
[1756458253020,1.32674241,109710.0,109700.0,0.09037632]
[1756458253021,1.32877241,109710.0,109700.0,0.09037632]
[1756458253219,1.32977241,109710.0,109700.0,0.09337632]
[1756458253631,1.32977241,109710.0,109700.0,0.09341632]
[1756458253828,1.32877241,109710.0,109700.0,4e-05]
[1756458254009,1.32877241,109710.0,109700.0,0.00204]
[1756458254213,1.33295241,109710.0,109700.0,0.00204]
[1756458254413,1.34683436,109710.0,109700.0,4e-05]
[1756458254615,1.35841507,109710.0,109700.0,0.00104]
[1756458254933,2.69632161,109710.0,109700.0,0.00304]
[1756458255089,2.77274165,109710.0,109700.0,0.00304]
[1756458255303,2.8803908,109710.0,109700.0,0.00304]
[1756458255984,2.8803908,109710.0,109700.0,0.00104]
[1756458255985,2.9068078,109710.0,109700.0,0.00104]
[1756458256210,2.99510412,109710.0,109700.0,0.00104]
[1756458256435,2.99610412,109710.0,109700.0,0.00304]
[1756458256686,2.99510412,109710.0,109700.0,0.00204]
[1756458256909,2.99410412,109710.0,109700.0,4e-05]
[1756458257120,2.99510412,109710.0,109700.0,4e-05]
[1756458257328,2.99610412,109710.0,109700.0,0.00104]
[1756458257740,3.16342412,109710.0,109700.0,4e-05]
[1756458257942,3.16242412,109710.0,109700.0,4e-05]
[1756458258377,2.99610412,109710.0,109700.0,0.00104]
[1756458258618,3.16234412,109710.0,109700.0,4e-05]
[1756458259075,2.9058078,109710.0,109700.0,4e-05]
[1756458259300,3.0749678,109710.0,109700.0,0.00204]
[1756458259972,3.0759678,109710.0,109700.0,0.00204]
[1756458260191,3.0739678,109710.0,109700.0,4e-05]
[1756458260627,3.16526412,109710.0,109700.0,0.00204]
[1756458260848,3.1652772,109710.0,109700.0,0.00204]
[1756458261270,2.9971172,109710.0,109700.0,0.00204]
[1756458261494,2.06293239,109710.0,109700.0,0.00204]
[1756458261714,3.51900088,109710.0,109700.0,0.00204]
[1756458262405,2.23376239,109710.0,109700.0,0.00405]
[1756458262607,1.93587025,109710.0,109700.0,0.00405]
[1756458262832,1.85667624,109710.0,109700.0,0.00699]
[1756458263023,2.02451624,109710.0,109700.0,0.00699]
[1756458263396,2.36451624,109710.0,109700.0,0.00699]
[1756458264038,2.36653624,109710.0,109700.0,0.00405]
[1756458264254,2.45483256,109710.0,109700.0,0.00204]
[1756458264422,3.47190105,109710.0,109700.0,0.00204]
[1756458264845,2.45793256,109710.0,109700.0,0.00204]
[1756458265567,2.45483256,109710.0,109700.0,0.00204]
[1756458266489,2.1682211,109710.0,109700.0,0.00405]
[1756458266712,2.36439624,109710.0,109700.0,0.00699]
[1756458266928,2.36641624,109710.0,109700.0,0.00405]
[1756458267159,3.38348473,109710.0,109700.0,0.00204]
[1756458267393,2.36641624,109710.0,109700.0,0.00405]
[1756458267614,2.45471256,109710.0,109700.0,0.00405]
[1756458267828,2.45471256,109710.0,109700.0,0.00204]
[1756458267829,2.45781256,109710.0,109700.0,0.00204]
[1756458268252,2.18648732,109710.0,109700.0,0.00204]
[1756458268467,2.3687861,109710.0,109700.0,0.00204]
[1756458268890,3.38275459,109710.0,109700.0,0.00204]
[1756458269099,2.3656861,109710.0,109700.0,0.00204]
[1756458269323,2.3656861,109710.0,109700.0,0.00405]
[1756458269954,2.3656861,109710.0,109700.0,0.00204]
[1756458270206,2.3687861,109710.0,109700.0,0.00204]
[1756458270661,2.3656861,109710.0,109700.0,0.00204]
[1756458271328,2.3572782,109710.0,109700.0,0.00204]
[1756458271544,2.36572315,109710.0,109700.0,0.00204]
[1756458273277,2.45401947,109710.0,109700.0,0.00204]
[1756458273438,3.47108796,109710.0,109700.0,0.00204]
[1756458274684,2.29335329,109710.0,109700.0,0.00699]
[1756458275030,2.29537329,109710.0,109700.0,0.00405]
[1756458276463,3.31244178,109710.0,109700.0,0.00204]
[1756458277054,1.2845048,109710.0,109700.0,0.00204]
[1756458277263,3.31244178,109710.0,109700.0,0.00204]
[1756458277464,3.4007381,109710.0,109700.0,0.00204]
[1756458277665,3.2339781,109710.0,109700.0,0.00204]
[1756458277866,3.4008581,109710.0,109700.0,0.00204]
[1756458278270,3.33199889,109710.0,109700.0,0.00204]
[1756458278569,3.16511889,109710.0,109700.0,0.00204]
[1756458278835,1.7059504,109710.0,109700.0,0.00405]
[1756458279052,0.7372448,109710.0,109700.0,0.00699]
[1756458279269,1.85121329,109710.0,109700.0,0.00699]
[1756458279501,0.11475088,109710.0,109700.0,0.27988066]
[1756458279716,1.47258872,109710.0,109700.0,0.09528632]
[1756458279905,1.47141616,109710.0,109700.0,0.09528632]
[1756458280328,1.47141616,109710.0,109700.0,0.09428632]
[1756458280553,1.47141616,109710.0,109700.0,0.27560172]
[1756458280790,1.47241616,109710.0,109700.0,0.27860172]
[1756458281287,1.47241616,109710.0,109700.0,0.09628632]
[1756458281580,1.5028913,109710.0,109700.0,0.09628632]
[1756458282017,1.5092423,109710.0,109700.0,0.09628632]
[1756458282447,1.51024219,109710.0,109700.0,0.10028632]
[1756458283932,0.4962737,109710.0,109700.0,0.10028632]
[1756458284083,1.51024219,109710.0,109700.0,0.09228632]
[1756458284287,0.4962737,109710.0,109700.0,0.09429632]
[1756458284693,1.41024219,109710.0,109700.0,0.09429632]
[1756458284902,1.33718926,109710.0,109700.0,0.09429632]
[1756458285694,1.33718765,109710.0,109700.0,0.09429632]
[1756458286166,1.34230765,109710.0,109700.0,0.09228632]
[1756458286389,1.34230765,109710.0,109700.0,0.09429632]
[1756458286597,2.88568911,109710.0,109700.0,0.007]
[1756458287213,2.86868931,109710.0,109700.0,0.007]
[1756458287365,1.87160925,109710.0,109700.0,0.007]
[1756458287547,1.87060925,109710.0,109700.0,0.004]
[1756458287743,2.88457774,109710.0,109700.0,0.004]
[1756458287951,1.70352925,109710.0,109700.0,0.001]
[1756458288189,1.86956925,109710.0,109700.0,0.001]
[1756458288338,1.87060925,109710.0,109700.0,0.003]
[1756458289361,2.97287406,109710.0,109700.0,0.003]
[1756458289787,2.88457774,109710.0,109700.0,0.003]
[1756458290211,2.71849774,109710.0,109700.0,0.003]
[1756458290411,2.88441774,109710.0,109700.0,0.003]
[1756458291219,2.71849774,109710.0,109700.0,0.003]
[1756458291439,2.88433774,109710.0,109700.0,0.003]
[1756458291628,1.8703719,109710.0,109700.0,0.003]
[1756458291826,1.7045319,109710.0,109700.0,0.003]
[1756458292036,1.8653319,109710.0,109700.0,0.00502]
[1756458292436,1.85899873,109710.0,109700.0,0.00502]
[1756458292634,1.86534975,109710.0,109700.0,0.00502]
[1756458293057,1.86534917,109710.0,109700.0,0.00502]
[1756458293350,1.35942917,109710.0,109700.0,0.00502]
[1756458293580,1.52522917,109710.0,109700.0,0.00798]
[1756458293753,1.50832969,109710.0,109700.0,0.00798]
[1756458294172,0.2285612,109710.0,109700.0,0.27859172]
[1756458294442,1.50199217,109710.0,109700.0,0.09627632]
[1756458294639,1.50199224,109710.0,109700.0,0.09627632]
[1756458295017,1.49354241,109710.0,109700.0,0.09627632]
[1756458295638,0.31377392,109710.0,109700.0,0.28087066]
[1756458295814,1.32774241,109710.0,109700.0,0.27859172]
[1756458297806,1.01496849,109710.0,109700.0,0.27859172]
[1756458298011,1.29726727,109710.0,109700.0,0.27859172]
[1756458298430,0.28329878,109710.0,109700.0,0.27859172]
[1756458298588,1.29626727,109710.0,109700.0,0.27559172]
[1756458299018,0.28329878,109710.0,109700.0,0.27563172]
[1756458299260,1.29726727,109710.0,109700.0,0.27563172]
[1756458299850,1.29726727,109710.0,109700.0,0.09331632]
[1756458300077,1.30333727,109710.0,109700.0,0.27761172]
[1756458300213,1.29826727,109710.0,109700.0,0.27963172]
[1756458300630,1.19826727,109710.0,109700.0,0.27963172]
[1756458300843,1.29826727,109710.0,109700.0,0.27963172]
[1756458301546,1.19826727,109710.0,109700.0,0.27963172]
[1756458301752,1.29826727,109710.0,109700.0,0.27963172]
[1756458302370,0.28429878,109710.0,109700.0,0.27963172]
[1756458302576,1.01596849,109710.0,109700.0,0.28259172]
[1756458302808,0.002,109710.0,109700.0,0.28259172]
[1756458303024,1.01596849,109710.0,109700.0,0.28259172]
[1756458303235,1.19826727,109710.0,109700.0,0.28259172]
[1756458303648,1.19826727,109710.0,109700.0,0.27963172]
[1756458303850,0.18429878,109710.0,109700.0,0.27963172]
[1756458304025,1.19826727,109710.0,109700.0,0.27963172]
[1756458304920,1.36921727,109710.0,109700.0,0.09529632]
[1756458305038,1.39969241,109710.0,109700.0,0.09529632]
[1756458305476,1.42182406,109710.0,109700.0,0.27963172]
[1756458305708,1.25397406,109710.0,109700.0,0.27963172]
[1756458305907,1.25904406,109710.0,109700.0,0.27761172]
[1756458306075,0.21984392,109710.0,109700.0,0.27963172]
[1756458306407,1.25397406,109710.0,109700.0,0.27963172]
[1756458306645,0.002,109710.0,109700.0,0.30353054]
[1756458306871,0.34326007,109750.0,109720.0,0.19139627]
[1756458306872,0.05,109750.0,109720.0,0.19139627]
[1756458307098,1.13920014,109750.0,109740.0,0.18426895]
[1756458307299,1.32143248,109750.0,109740.0,0.09031632]
[1756458307511,0.18223234,109750.0,109740.0,0.09031632]
[1756458307727,0.18223234,109750.0,109740.0,0.27256527]
[1756458307728,0.28420234,109750.0,109740.0,0.27256527]
[1756458307981,0.28420234,109750.0,109740.0,0.08829632]
[1756458307982,1.36702464,109750.0,109740.0,0.08829632]
[1756458308204,1.49797558,109750.0,109740.0,0.27054527]
[1756458308621,1.33209558,109750.0,109740.0,0.08829632]
[1756458308813,0.03047514,109740.0,109730.0,0.34810556]
[1756458309089,1.23280895,109740.0,109730.0,0.27056188]
[1756458309305,1.23163639,109740.0,109730.0,0.08829632]
[1756458309675,1.39735639,109740.0,109730.0,0.08829632]
[1756458310074,1.49735639,109740.0,109730.0,0.08829632]
[1756458310649,1.49735639,109740.0,109730.0,0.09129632]
[1756458311569,1.83735639,109740.0,109730.0,0.003]
[1756458311770,1.84579127,109740.0,109730.0,0.003]
[1756458312017,1.86899431,109740.0,109730.0,0.003]
[1756458312355,1.86899431,109740.0,109730.0,0.006]
[1756458312559,1.83952104,109740.0,109730.0,0.006]
[1756458312991,0.8256785,109740.0,109730.0,0.006]
[1756458313196,0.6599585,109740.0,109730.0,0.006]
[1756458313399,1.81595844,109740.0,109730.0,0.006]
[1756458313975,0.80211614,109740.0,109730.0,0.006]
[1756458314186,1.81595844,109740.0,109730.0,0.006]
[1756458314404,1.86349621,109740.0,109730.0,0.006]
[1756458314620,1.95179253,109740.0,109730.0,0.006]
[1756458315051,1.83923855,109740.0,109730.0,0.006]
[1756458315261,0.82543625,109740.0,109730.0,0.006]
[1756458315465,1.73827855,109740.0,109730.0,0.003]
[1756458315675,1.73927855,109740.0,109730.0,0.00502]
[1756458315875,1.81607844,109740.0,109730.0,0.00502]
[1756458316086,1.81507844,109740.0,109730.0,0.003]
[1756458316227,1.54649844,109740.0,109730.0,0.3462127]
[1756458316429,1.30452844,109740.0,109730.0,0.3482127]
[1756458316650,0.28224895,109740.0,109730.0,0.16890714]
[1756458316877,0.23676427,109750.0,109740.0,0.18224895]
[1756458316878,0.21011314,109750.0,109740.0,0.18224895]
[1756458317087,0.21011314,109750.0,109740.0,0.27256527]
[1756458317088,0.28270814,109750.0,109740.0,0.27256527]
[1756458317310,0.0004758,109750.0,109740.0,0.43896527]
[1756458318774,0.0004758,109750.0,109740.0,0.43996527]
[1756458319203,0.0004758,109750.0,109740.0,0.43896527]
[1756458319702,0.0014758,109750.0,109740.0,0.44196527]
[1756458320118,0.0014758,109750.0,109740.0,0.44496527]
[1756458320564,0.0014758,109750.0,109740.0,0.44512527]
[1756458321001,0.0014758,109750.0,109740.0,0.27952527]
[1756458321216,1.19755044,109750.0,109740.0,0.44236527]
[1756458321432,0.18370814,109750.0,109740.0,0.44236527]
[1756458322065,0.0014758,109750.0,109740.0,0.44236527]
[1756458322274,0.18370814,109750.0,109740.0,0.44236527]
[1756458322700,1.19954044,109750.0,109740.0,0.09631632]
[1756458322909,1.20264044,109750.0,109740.0,0.26061632]
[1756458323121,0.18879814,109750.0,109740.0,0.26061632]
[1756458323358,0.19723067,109750.0,109740.0,0.44489527]
[1756458323560,1.20797297,109750.0,109740.0,0.44489527]
[1756458323758,1.21107297,109750.0,109740.0,0.26053632]
[1756458324383,1.21107297,109750.0,109740.0,0.09429632]
[1756458324588,1.21107297,109750.0,109740.0,0.26053632]
[1756458325223,1.21107297,109750.0,109740.0,0.09429632]
[1756458325448,1.21107297,109750.0,109740.0,0.26045632]
[1756458325656,0.00990833,109750.0,109740.0,0.44473527]
[1756458325865,0.19214067,109750.0,109740.0,0.44473527]
[1756458326423,0.19214067,109750.0,109740.0,0.27857527]
[1756458326652,0.19723067,109750.0,109740.0,0.26021632]
[1756458326870,1.21107297,109750.0,109740.0,0.26021632]
[1756458327155,0.19723067,109750.0,109740.0,0.26017632]
[1756458327350,1.21107297,109750.0,109740.0,0.26017632]
[1756458327571,1.20797297,109750.0,109740.0,0.44445527]
[1756458327771,0.19413067,109750.0,109740.0,0.44445527]
[1756458328582,0.00990833,109750.0,109740.0,0.44445527]
[1756458328822,0.19214067,109750.0,109740.0,0.44445527]
[1756458329026,0.00990833,109750.0,109740.0,0.44445527]
[1756458329247,0.00990833,109750.0,109740.0,0.44760527]
[1756458330698,0.19214067,109750.0,109740.0,0.44760527]
[1756458330918,0.19413067,109750.0,109740.0,0.26188632]
[1756458331134,1.21107297,109750.0,109740.0,0.09429632]
[1756458331568,1.21107297,109750.0,109740.0,0.25973632]
[1756458331840,1.21107297,109750.0,109740.0,0.44198527]
[1756458331841,0.19723067,109750.0,109740.0,0.44198527]
[1756458332067,0.00990833,109750.0,109740.0,0.44401527]
[1756458332281,0.00990833,109750.0,109740.0,0.44716527]
[1756458332500,0.19214067,109750.0,109740.0,0.44716527]
[1756458332715,0.19214067,109750.0,109740.0,0.44401527]
[1756458333410,0.19214067,109750.0,109740.0,0.43522227]
[1756458333658,0.19215493,109750.0,109740.0,0.26978227]
[1756458333885,1.31108723,109750.0,109740.0,0.17152]
[1756458334101,1.66798316,109750.0,109740.0,0.006]
[1756458334306,1.66798316,109750.0,109740.0,0.1714]
[1756458334568,1.66798316,109750.0,109740.0,0.006]
[1756458334854,1.66798316,109750.0,109740.0,0.17136]
[1756458335075,1.674319,109750.0,109740.0,0.006]
[1756458335288,0.66047638,109750.0,109740.0,0.006]
[1756458335497,1.67431868,109750.0,109740.0,0.006]
[1756458336199,1.83959868,109750.0,109740.0,0.006]
[1756458336428,0.66047638,109750.0,109740.0,0.006]
[1756458336644,1.67431868,109750.0,109740.0,0.006]
[1756458339888,0.00992259,109750.0,109740.0,0.28085338]
[1756458340091,0.10992259,109750.0,109740.0,0.28172527]
[1756458340227,0.29215493,109750.0,109740.0,0.28172527]
[1756458340455,0.29215493,109750.0,109740.0,0.27857527]
[1756458340627,0.29215493,109750.0,109740.0,0.09632632]
[1756458341027,0.29414493,109750.0,109740.0,0.09632632]
[1756458341455,0.29215493,109750.0,109740.0,0.28085338]
[1756458341808,0.10992259,109750.0,109740.0,0.27857527]
[1756458342160,0.29215493,109750.0,109740.0,0.27857527]
[1756458342435,0.19215493,109750.0,109740.0,0.27857527]
[1756458342616,0.29215493,109750.0,109740.0,0.27857527]
[1756458342813,0.10992259,109750.0,109740.0,0.27857527]
[1756458342971,0.00992259,109750.0,109740.0,0.28172527]
[1756458343835,0.19215493,109750.0,109740.0,0.27857527]
[1756458344037,0.00992259,109750.0,109740.0,0.27857527]
[1756458344402,0.00992259,109750.0,109740.0,0.44441527]
[1756458344617,0.00992762,109750.0,109740.0,0.44756527]
[1756458344822,0.0014758,109750.0,109740.0,0.44756527]
[1756458345026,0.00992836,109750.0,109740.0,0.44756527]
[1756458345578,0.00992836,109750.0,109740.0,1.46140757]
[1756458345782,0.0014758,109750.0,109740.0,1.46140757]
[1756458346676,0.0014758,109750.0,109740.0,1.51140757]
[1756458346885,0.0004758,109750.0,109740.0,1.50840757]
[1756458347098,0.0004758,109750.0,109740.0,1.84840757]
[1756458347326,0.0014758,109750.0,109740.0,1.85140757]
[1756458347524,0.0014758,109750.0,109740.0,1.87879757]
[1756458347640,1.49267631,109790.0,109780.0,0.18218254]
[1756458347641,0.24267416,109790.0,109780.0,0.18218254]
[1756458347841,0.24267416,109790.0,109780.0,0.27255625]
[1756458347842,0.27538089,109790.0,109780.0,0.27255625]
[1756458348085,0.01044891,109790.0,109780.0,0.27255625]
[1756458348300,0.00845891,109790.0,109780.0,0.27570625]
[1756458348476,0.01046891,109790.0,109780.0,0.27255625]
[1756458348722,0.08485307,109790.0,109780.0,0.27255625]
[1756458349068,0.00845891,109790.0,109780.0,0.27577625]
[1756458349287,0.00845891,109790.0,109780.0,1.28961855]
[1756458349864,0.0004,109800.0,109790.0,0.18216595]
[1756458350099,0.0004,109800.0,109790.0,0.43710227]
[1756458350310,0.00885313,109800.0,109790.0,0.44237227]
[1756458351371,0.19301249,109800.0,109790.0,0.09034632]
[1756458351581,0.19100249,109800.0,109790.0,0.44237227]
[1756458351789,0.00885313,109800.0,109790.0,0.44237227]
[1756458351993,0.00885313,109800.0,109790.0,0.44437227]
[1756458352202,0.00885313,109800.0,109790.0,0.44737227]
[1756458352618,0.00885313,109800.0,109790.0,0.51745227]
[1756458352825,0.00885313,109800.0,109790.0,0.51765227]
[1756458353247,0.00885313,109800.0,109790.0,0.35081227]
[1756458353666,0.19301249,109800.0,109790.0,0.55625063]
[1756458353783,0.00885313,109800.0,109790.0,0.55947063]
[1756458353994,0.00861176,109800.0,109790.0,0.55947063]
[1756458354403,0.00861176,109800.0,109790.0,0.55951063]
[1756458354604,0.00861176,109800.0,109790.0,0.55943063]
[1756458354820,0.00861176,109800.0,109790.0,0.55621063]
[1756458355070,0.01059879,109800.0,109790.0,0.55613063]
[1756458355730,0.00858659,109800.0,109790.0,0.55935063]
[1756458356145,0.01059659,109800.0,109790.0,0.55935063]
[1756458356461,0.00858659,109800.0,109790.0,0.55935063]
[1756458357107,0.01059659,109800.0,109790.0,0.55935063]
[1756458357525,0.01059659,109800.0,109790.0,0.55613063]
[1756458357782,0.00858659,109800.0,109790.0,0.55935063]
[1756458357995,0.00858659,109800.0,109790.0,1.57319293]
[1756458358211,0.00015863,109800.0,109790.0,1.57319293]
[1756458358398,0.00015863,109800.0,109790.0,1.62319293]
[1756458358859,0.00015863,109800.0,109790.0,0.60935063]
[1756458359070,0.00015863,109800.0,109790.0,1.62319293]
[1756458359272,0.00857761,109800.0,109790.0,0.39275063]
[1756458359479,0.00857788,109800.0,109790.0,0.39275063]
[1756458359688,0.00857788,109800.0,109790.0,0.55987063]
[1756458360329,0.01058788,109800.0,109790.0,0.38953063]
[1756458360545,0.01058788,109800.0,109790.0,0.55657063]
[1756458361798,0.00857788,109800.0,109790.0,0.55979063]
[1756458362285,0.01058788,109800.0,109790.0,0.55633063]
[1756458362777,0.00857788,109800.0,109790.0,0.55955063]
[1756458364059,0.00857788,109800.0,109790.0,0.95955063]
[1756458364273,0.00015863,109800.0,109790.0,0.95955063]
[1756458364490,0.00015863,109800.0,109790.0,0.79275063]
[1756458364935,0.18230799,109800.0,109790.0,0.79275063]
[1756458365223,0.01058729,109800.0,109790.0,0.95637063]
[1756458365660,0.01058729,109800.0,109790.0,0.55637063]
[1756458366076,0.00857729,109800.0,109790.0,0.55959063]
[1756458366986,1.28596311,109800.0,109790.0,0.25993632]
[1756458367414,1.28596311,109800.0,109790.0,0.44210227]
[1756458367670,1.28596311,109800.0,109790.0,0.25793632]
[1756458368118,1.28696311,109800.0,109790.0,0.25793632]
[1756458368362,1.28696311,109800.0,109790.0,0.25493632]
[1756458368796,1.28596311,109800.0,109790.0,0.25593632]
[1756458369270,0.27212081,109800.0,109790.0,0.25593632]
[1756458369497,0.27212081,109800.0,109790.0,0.25569632]
[1756458369498,1.62596311,109800.0,109790.0,0.25569632]
[1756458369802,1.84048701,109800.0,109790.0,0.00104]
[1756458370024,1.79865019,109800.0,109790.0,0.00104]
[1756458370697,2.84881597,109800.0,109790.0,0.00104]
[1756458370918,1.83497367,109800.0,109790.0,0.00104]
[1756458371362,2.84881597,109800.0,109790.0,4e-05]
[1756458371581,0.59856011,109790.0,109780.0,4.739e-05]
[1756458371801,1.62717318,109790.0,109780.0,4.739e-05]
[1756458372019,1.64406073,109790.0,109780.0,4.739e-05]
[1756458372238,1.66851446,109790.0,109780.0,4.739e-05]
[1756458374438,1.66951446,109790.0,109780.0,4.739e-05]
[1756458374854,1.63785614,109790.0,109780.0,4.739e-05]
[1756458375059,1.66954706,109790.0,109780.0,4.739e-05]
[1756458375443,1.66955132,109790.0,109780.0,4.739e-05]
[1756458375642,1.74329811,109790.0,109780.0,4.739e-05]
[1756458375837,1.76749859,109790.0,109780.0,4.739e-05]
[1756458376050,1.85579491,109790.0,109780.0,4.739e-05]
[1756458376255,0.84195261,109790.0,109780.0,4.739e-05]
[1756458376462,1.94808812,109790.0,109780.0,4.739e-05]
[1756458377292,1.94808812,109790.0,109750.0,0.07063082]
[1756458377491,1.6124522,109760.0,109750.0,0.07071641]
[1756458377754,1.78714311,109760.0,109750.0,0.07071641]
[1756458377942,1.78915311,109760.0,109750.0,0.07071641]
[1756458378191,1.79214311,109760.0,109750.0,0.07071641]
[1756458378994,1.62590311,109760.0,109750.0,0.07071641]
[1756458379154,1.79206311,109760.0,109750.0,0.07471641]
[1756458379997,1.81584138,109760.0,109750.0,0.07471641]
[1756458380847,1.81584138,109760.0,109750.0,0.00408559]
[1756458381049,1.81584138,109760.0,109750.0,0.00708559]
[1756458381270,1.91046108,109760.0,109750.0,0.00708559]
[1756458381471,1.93786208,109760.0,109750.0,0.00708559]
[1756458381669,0.94087294,109760.0,109750.0,0.00708559]
[1756458381961,1.95447524,109760.0,109750.0,0.00708559]
[1756458382158,1.86617892,109760.0,109750.0,0.00708559]
[1756458382588,1.86617892,109760.0,109750.0,8.559e-05]
[1756458382747,1.70025892,109760.0,109750.0,8.559e-05]
[1756458382946,1.86609892,109760.0,109750.0,8.559e-05]
[1756458383172,0.66956346,109760.0,109750.0,8.559e-05]
[1756458383370,1.84932576,109760.0,109750.0,8.559e-05]
[1756458385147,0.66956346,109760.0,109750.0,8.559e-05]
[1756458385373,1.84948576,109760.0,109750.0,8.559e-05]
[1756458385582,1.84103485,109760.0,109750.0,8.559e-05]
[1756458385788,1.8493934,109760.0,109750.0,8.559e-05]
[1756458385997,0.6632017,109760.0,109750.0,8.559e-05]
[1756458386203,1.840054,109760.0,109750.0,0.00216559]
[1756458386410,1.843224,109760.0,109750.0,8.559e-05]
[1756458387727,1.840054,109760.0,109750.0,0.00216559]
[1756458387940,1.76365984,109760.0,109750.0,0.00216559]
[1756458388177,1.843224,109760.0,109750.0,0.00216559]
[1756458388381,1.843224,109760.0,109750.0,8.559e-05]
[1756458388811,1.843224,109760.0,109750.0,0.00012559]
[1756458389958,1.84953657,109760.0,109750.0,0.00012559]
[1756458390657,1.86889028,109760.0,109750.0,0.00012559]
[1756458391292,1.60714241,109760.0,109750.0,0.00012559]
[1756458391498,1.73384884,109760.0,109750.0,0.00517559]
[1756458391966,1.810243,109760.0,109750.0,0.00517559]
[1756458392215,1.73384884,109760.0,109750.0,0.00517559]
[1756458392450,1.812293,109760.0,109750.0,0.00220559]
[1756458392668,1.810243,109760.0,109750.0,0.00517559]
[1756458392880,1.644643,109760.0,109750.0,0.00517559]
[1756458393114,1.810083,109760.0,109750.0,0.00517559]
[1756458393461,1.815303,109760.0,109750.0,0.00220559]
[1756458393706,1.812133,109760.0,109750.0,0.00320559]
[1756458393913,1.812133,109760.0,109750.0,0.00420559]
[1756458394509,1.81845743,109760.0,109750.0,0.00420559]
[1756458394872,0.80778513,109760.0,109750.0,0.00212559]
[1756458395093,1.82162743,109760.0,109750.0,0.00212559]